fUSD/lending_fUSD_20260605
["ID","MTS","AMOUNT","RATE_DAILY","PERIOD"]
[424116250,1780601449000,-1052.74283159,0.00027,2]
[424116248,1780601449000,-994.29561143,0.00026936,2]
[424116247,1780601449000,-374.31742255,0.00026936,2]
[424116252,1780601449000,-530.0,0.00027,2]
[424116253,1780601449000,-1600.263084,0.00027,60]
[424116255,1780601449000,-1600.263085,0.00027,60]
[424116274,1780601449000,-308.147385,0.00027397,2]
[424116254,1780601449000,-1600.263084,0.00027,60]
[424116257,1780601449000,-213.38801546,0.000273,30]
[424116259,1780601449000,-46309.20123051,0.0002739,2]
[424116261,1780601449000,-321.22305785,0.00027397,2]
[424116263,1780601449000,-500.0,0.00027397,7]
[424116262,1780601449000,-500.0,0.00027397,7]
[424116260,1780601449000,-150.0,0.00027397,30]
[424116266,1780601449000,-150.0,0.00027397,2]
[424116264,1780601449000,-352.0,0.00027397,7]
[424116267,1780601449000,-150.0,0.00027397,2]
[424116265,1780601449000,-150.0,0.00027397,2]
[424116270,1780601449000,-1500.0,0.00027397,2]
[424116276,1780601449000,-308.147385,0.00027397,2]
[424116256,1780601449000,-500.0,0.00027137,2]
[424116258,1780601449000,-8266.62594141,0.0002739,2]
[424116313,1780601449000,-749.673451,0.00027397,2]
[424116309,1780601449000,-151.0,0.00027397,2]
[424116331,1780601449000,-749.673451,0.00027397,2]
[424116335,1780601449000,-557.281833,0.00027397,2]
[424116336,1780601449000,-557.281833,0.00027397,2]
[424116340,1780601449000,-557.281833,0.00027397,2]
[424116339,1780601449000,-151.0,0.00027397,2]
[424116341,1780601449000,-151.0,0.00027397,2]
[424116342,1780601449000,-151.0,0.00027397,2]
[424116344,1780601449000,-151.0,0.00027397,2]
[424116345,1780601449000,-557.281833,0.00027397,2]
[424116343,1780601449000,-557.281833,0.00027397,2]
[424116346,1780601449000,-151.0,0.00027397,2]
[424116347,1780601449000,-557.281833,0.00027397,2]
[424116334,1780601449000,-557.281833,0.00027397,2]
[424116348,1780601449000,-154.772341,0.00027397,2]
[424116352,1780601449000,-557.281833,0.00027397,2]
[424116354,1780601449000,-557.281833,0.00027397,2]
[424116353,1780601449000,-557.281833,0.00027397,2]
[424116355,1780601449000,-557.281833,0.00027397,2]
[424116357,1780601449000,-557.281833,0.00027397,2]
[424116356,1780601449000,-557.281833,0.00027397,2]
[424116358,1780601449000,-557.281833,0.00027397,2]
[424116351,1780601449000,-557.281833,0.00027397,2]
[424116359,1780601449000,-557.281825,0.00027397,2]
[424116361,1780601449000,-500.0,0.000274,2]
[424116360,1780601449000,-500.0,0.000274,2]
[424116312,1780601449000,-1022.03,0.00027397,2]
[424116350,1780601449000,-557.281833,0.00027397,2]
[424116333,1780601449000,-242.02,0.00027397,2]
[424116349,1780601449000,-557.281833,0.00027397,2]
[424116328,1780601449000,-749.673451,0.00027397,2]
[424116338,1780601449000,-557.281833,0.00027397,2]
[424116301,1780601449000,-300.0,0.00027397,2]
[424116305,1780601449000,-151.0,0.00027397,2]
[424116311,1780601449000,-151.0,0.00027397,2]
[424116303,1780601449000,-151.0,0.00027397,2]
[424116304,1780601449000,-151.0,0.00027397,2]
[424116307,1780601449000,-151.0,0.00027397,2]
[424116308,1780601449000,-528.6,0.00027397,2]
[424116310,1780601449000,-151.0,0.00027397,2]
[424116314,1780601449000,-749.673451,0.00027397,2]
[424116315,1780601449000,-749.673451,0.00027397,2]
[424116316,1780601449000,-749.673451,0.00027397,2]
[424116317,1780601449000,-749.673451,0.00027397,2]
[424116318,1780601449000,-749.673451,0.00027397,2]
[424116306,1780601449000,-151.0,0.00027397,2]
[424116329,1780601449000,-749.673451,0.00027397,2]
[424116324,1780601449000,-749.673451,0.00027397,2]
[424116330,1780601449000,-749.673451,0.00027397,2]
[424116332,1780601449000,-749.673459,0.00027397,2]
[424116326,1780601449000,-749.673451,0.00027397,2]
[424116327,1780601449000,-749.673451,0.00027397,2]
[424116337,1780601449000,-557.281833,0.00027397,2]
[424116320,1780601449000,-749.673451,0.00027397,2]
[424116321,1780601449000,-749.673451,0.00027397,2]
[424116325,1780601449000,-749.673451,0.00027397,2]
[424116319,1780601449000,-749.673451,0.00027397,2]
[424116322,1780601449000,-749.673451,0.00027397,2]
[424116323,1780601449000,-749.673451,0.00027397,2]
[424116398,1780601450000,-154.44135391,0.00027793,2]
[424116406,1780601450000,-1357.0,0.00027798,2]
[424116403,1780601450000,-186.14449273,0.00027793,2]
[424116399,1780601450000,-154.18590766,0.00027793,2]
[424116396,1780601450000,-160.06766649,0.00027793,2]
[424116387,1780601450000,-1547.0,0.00027782,3]
[424116397,1780601450000,-162.68434547,0.00027793,2]
[424116393,1780601450000,-152.0,0.00027782,3]
[424116392,1780601450000,-1547.0,0.00027782,3]
[424116391,1780601450000,-1547.0,0.00027782,3]
[424116404,1780601450000,-152.06906132,0.00027793,2]
[424116407,1780601450000,-500.0,0.00027842,2]
[424116401,1780601450000,-174.64,0.00027793,2]
[424116412,1780601450000,-232.83018654,0.00028,30]
[424116405,1780601450000,-157.04179645,0.00027793,2]
[424116402,1780601450000,-185.88230227,0.00027793,2]
[424116409,1780601450000,-260.4103811,0.00027977,2]
[424116417,1780601450000,-307.05311869,0.00028032,2]
[424116418,1780601450000,-1069.23467737,0.00028032,2]
[424116408,1780601450000,-500.0,0.00027966,15]
[424116410,1780601450000,-339.4217023,0.00027992,2]
[424116413,1780601450000,-449.67553296,0.00028,60]
[424116411,1780601450000,-51742.53131151,0.00028,2]
[424116416,1780601450000,-172.14832771,0.00028028,2]
[424116415,1780601450000,-961.34218118,0.00028,5]
[424116414,1780601450000,-325.0,0.00028,2]
[424116400,1780601450000,-169.8604662,0.00027793,2]
[424116386,1780601450000,-1547.0,0.00027782,3]
[424116370,1780601450000,-553.1,0.000274,7]
[424116390,1780601450000,-1547.0,0.00027782,3]
[424116365,1780601450000,-611.05,0.000274,2]
[424116369,1780601450000,-999.06820793,0.000274,2]
[424116371,1780601450000,-621.78829552,0.00027427,2]
[424116366,1780601450000,-634.12,0.000274,7]
[424116364,1780601450000,-500.0,0.000274,2]
[424116363,1780601450000,-500.0,0.000274,2]
[424116362,1780601450000,-932.04,0.000274,2]
[424116368,1780601450000,-821.05,0.000274,7]
[424116367,1780601450000,-959.27,0.000274,14]
[424116380,1780601450000,-258.15,0.000276,14]
[424116419,1780601450000,-614.83612588,0.0002808,5]
[424116378,1780601450000,-1031.08454906,0.00027484,2]
[424116388,1780601450000,-152.0,0.00027782,3]
[424116382,1780601450000,-200.0,0.00027651,2]
[424116375,1780601450000,-251.11897888,0.00027429,2]
[424116383,1780601450000,-237.1,0.00027689,2]
[424116372,1780601450000,-775.4783256,0.00027427,2]
[424116373,1780601450000,-2991.49051684,0.00027429,2]
[424116379,1780601450000,-500.0,0.000275,7]
[424116374,1780601450000,-500.0,0.00027429,2]
[424116377,1780601450000,-388.16716718,0.00027484,2]
[424116385,1780601450000,-1547.0,0.00027782,3]
[424116395,1780601450000,-157.56307099,0.00027793,2]
[424116384,1780601450000,-1547.0,0.00027782,3]
[424116394,1780601450000,-153.0,0.00027782,3]
[424116389,1780601450000,-153.0,0.00027782,3]
[424116376,1780601450000,-200.0,0.00027463,2]
[424116422,1780601450000,-1094.28,0.00028194,11]
[424116381,1780601450000,-328.8,0.00027623,7]
[424116423,1780601450000,-634.12,0.000282,7]
[424116455,1780601450000,-211.71,0.00028788,30]
[424116454,1780601450000,-208.47,0.00028788,30]
[424116450,1780601450000,-208.47,0.00028756,7]
[424116457,1780601450000,-987.62,0.00028797,7]
[424116458,1780601450000,-545.66,0.00028797,7]
[424116464,1780601450000,-208.47,0.0002882,2]
[424116467,1780601450000,-211.71,0.00028852,7]
[424116461,1780601450000,-548.76,0.00028797,7]
[424116465,1780601450000,-211.71,0.0002882,2]
[424116462,1780601450000,-500.0,0.00028804,17]
[424116460,1780601450000,-985.57,0.00028797,7]
[424116466,1780601450000,-208.47,0.00028852,7]
[424116459,1780601450000,-892.68,0.00028797,7]
[424116463,1780601450000,-350.0,0.00028815,2]
[424116468,1780601450000,-208.47,0.00028883,30]
[424116480,1780601450000,-234.48544431,0.00028971,2]
[424116469,1780601450000,-211.71,0.00028883,30]
[424116479,1780601450000,-548.76,0.00028964,2]
[424116477,1780601450000,-892.68,0.00028964,2]
[424116470,1780601450000,-208.47,0.00028915,2]
[424116471,1780601450000,-211.71,0.00028915,2]
[424116476,1780601450000,-545.66,0.00028964,2]
[424116474,1780601450000,-912.16,0.00028964,2]
[424116478,1780601450000,-985.57,0.00028964,2]
[424116472,1780601450000,-208.47,0.00028947,7]
[424116473,1780601450000,-211.71,0.00028947,7]
[424116475,1780601450000,-987.62,0.00028964,2]
[424116452,1780601450000,-150.0,0.00028767,30]
[424116445,1780601450000,-211.71,0.00028693,30]
[424116420,1780601450000,-150.0,0.00028082,30]
[424116453,1780601450000,-150.0,0.00028767,2]
[424116451,1780601450000,-211.71,0.00028756,7]
[424116425,1780601450000,-3430.7,0.00028267,2]
[424116429,1780601450000,-186.04151345,0.000285,2]
[424116424,1780601450000,-821.05,0.000282,7]
[424116421,1780601450000,-765.01,0.00028194,11]
[424116430,1780601450000,-270.0455652,0.00028525,2]
[424116426,1780601450000,-959.27,0.000283,14]
[424116431,1780601450000,-500.0,0.00028547,3]
[424116427,1780601450000,-200.0,0.00028429,2]
[424116443,1780601450000,-211.71,0.00028661,7]
[424116433,1780601450000,-790.72785747,0.0002858,2]
[424116432,1780601450000,-5694.07,0.00028576,7]
[424116434,1780601450000,-912.16,0.0002863,30]
[424116428,1780601450000,-150.0,0.00028493,30]
[424116440,1780601450000,-548.76,0.0002863,30]
[424116435,1780601450000,-987.62,0.0002863,30]
[424116448,1780601450000,-208.47,0.00028725,2]
[424116446,1780601450000,-150.15733088,0.00028725,2]
[424116447,1780601450000,-150.15733088,0.00028725,2]
[424116444,1780601450000,-208.47,0.00028693,30]
[424116437,1780601450000,-208.47,0.0002863,2]
[424116449,1780601450000,-211.71,0.00028725,2]
[424116441,1780601450000,-211.71,0.0002863,2]
[424116442,1780601450000,-208.47,0.00028661,7]
[424116436,1780601450000,-545.66,0.0002863,30]
[424116438,1780601450000,-892.68,0.0002863,30]
[424116439,1780601450000,-985.57,0.0002863,30]
[424116456,1780601450000,-912.16,0.00028797,7]
[424116519,1780601451000,-821.05,0.000291,7]
[424116518,1780601451000,-211.71,0.00029074,30]
[424116524,1780601451000,-308.88270782,0.00029102,2]
[424116525,1780601451000,-171.03795223,0.00029102,2]
[424116522,1780601451000,-320.13533298,0.00029102,2]
[424116507,1780601451000,-150.0,0.00029,2]
[424116511,1780601451000,-208.47,0.0002901,2]
[424116508,1780601451000,-150.0,0.00029,2]
[424116510,1780601451000,-10000.0,0.00029,2]
[424116514,1780601451000,-208.47,0.00029042,7]
[424116520,1780601451000,-553.1,0.000291,7]
[424116517,1780601451000,-208.47,0.00029074,30]
[424116523,1780601451000,-325.36869094,0.00029102,2]
[424116534,1780601451000,-304.13812265,0.00029102,2]
[424116521,1780601451000,-315.12614199,0.00029102,2]
[424116527,1780601451000,-308.37181532,0.00029102,2]
[424116526,1780601451000,-185.11451151,0.00029102,2]
[424116530,1780601451000,-349.28,0.00029102,2]
[424116536,1780601451000,-314.08359291,0.00029102,2]
[424116529,1780601451000,-174.31276648,0.00029102,2]
[424116531,1780601451000,-371.76460453,0.00029102,2]
[424116537,1780601451000,-243.48055556,0.00029102,2]
[424116540,1780601451000,-300.86756511,0.0002913,7]
[424116532,1780601451000,-205.75953797,0.00029102,2]
[424116533,1780601451000,-372.28898546,0.00029102,2]
[424116513,1780601451000,-150.0,0.00029041,30]
[424116528,1780601451000,-339.72093241,0.00029102,2]
[424116515,1780601451000,-211.71,0.00029042,7]
[424116504,1780601451000,-150.0,0.00029,2]
[424116512,1780601451000,-211.71,0.0002901,2]
[424116492,1780601451000,-219.68020016,0.00029,2]
[424116482,1780601451000,-208.47,0.00028979,30]
[424116481,1780601451000,-184.96699661,0.00028971,2]
[424116484,1780601451000,-1788.0,0.00028994,2]
[424116485,1780601451000,-10000.0,0.00029,2]
[424116483,1780601451000,-211.71,0.00028979,30]
[424116486,1780601451000,-159.05,0.00029,2]
[424116487,1780601451000,-159.05,0.00029,2]
[424116488,1780601451000,-159.05,0.00029,2]
[424116489,1780601451000,-159.07,0.00029,2]
[424116491,1780601451000,-734.0,0.00029,7]
[424116490,1780601451000,-629.60355887,0.00029,2]
[424116493,1780601451000,-511.16350929,0.00029,2]
[424116494,1780601451000,-308.147385,0.00029,7]
[424116495,1780601451000,-308.147385,0.00029,7]
[424116539,1780601451000,-211.71,0.00029105,2]
[424116503,1780601451000,-150.0,0.00029,2]
[424116497,1780601451000,-308.147385,0.00029,7]
[424116496,1780601451000,-308.147385,0.00029,7]
[424116502,1780601451000,-150.0,0.00029,2]
[424116498,1780601451000,-151.0,0.00029,7]
[424116500,1780601451000,-150.0,0.00029,2]
[424116501,1780601451000,-150.0,0.00029,2]
[424116499,1780601451000,-150.0,0.00029,2]
[424116506,1780601451000,-150.0,0.00029,2]
[424116516,1780601451000,-266.39576586,0.00029073,2]
[424116505,1780601451000,-150.0,0.00029,2]
[424116509,1780601451000,-7017.40586421,0.00029,7]
[424116535,1780601451000,-231.08677366,0.00029102,2]
[424116538,1780601451000,-208.47,0.00029105,2]
[424116542,1780601451000,-987.62,0.00029132,30]
[424116570,1780601451000,-151.0,0.00029372,7]
[424116575,1780601451000,-151.0,0.00029517,7]
[424116567,1780601451000,-985.57,0.00029299,7]
[424116579,1780601451000,-500.0,0.00029519,11]
[424116589,1780601451000,-308.147385,0.0002952,7]
[424116581,1780601451000,-500.0,0.00029519,7]
[424116586,1780601451000,-152.594755,0.0002952,7]
[424116590,1780601451000,-308.147389,0.0002952,7]
[424116578,1780601451000,-1094.28,0.00029519,11]
[424116580,1780601451000,-500.0,0.00029519,11]
[424116582,1780601451000,-307.54965606,0.00029519,10]
[424116584,1780601451000,-4072.0027061,0.0002952,2]
[424116588,1780601451000,-308.147385,0.0002952,7]
[424116587,1780601451000,-308.147385,0.0002952,7]
[424116583,1780601451000,-44901.787414,0.0002952,2]
[424116585,1780601451000,-214426.5074352,0.0002952,2]
[424116592,1780601451000,-1018.88,0.00029527,7]
[424116591,1780601451000,-151.0,0.0002952,7]
[424116593,1780601451000,-565.94,0.00029527,30]
[424116594,1780601451000,-150.0,0.00029534,2]
[424116541,1780601451000,-912.16,0.00029132,30]
[424116599,1780601451000,-500.0,0.00029673,2]
[424116601,1780601451000,-500.0,0.00029673,2]
[424116597,1780601451000,-1000.0,0.00029613,7]
[424116595,1780601451000,-1000.0,0.00029548,7]
[424116598,1780601451000,-500.0,0.00029669,18]
[424116600,1780601451000,-500.0,0.00029673,2]
[424116576,1780601451000,-765.01,0.00029519,11]
[424116573,1780601451000,-150.0,0.00029512,3]
[424116596,1780601451000,-1000.0,0.00029599,7]
[424116569,1780601451000,-959.27,0.000293,14]
[424116574,1780601451000,-151.0,0.00029517,7]
[424116544,1780601451000,-892.68,0.00029132,30]
[424116547,1780601451000,-208.47,0.00029137,7]
[424116546,1780601451000,-548.76,0.00029132,30]
[424116543,1780601451000,-545.66,0.00029132,30]
[424116549,1780601451000,-2000.0,0.00029144,20]
[424116550,1780601451000,-222.9379748,0.00029145,16]
[424116552,1780601451000,-211.71,0.00029169,30]
[424116548,1780601451000,-211.71,0.00029137,7]
[424116551,1780601451000,-208.47,0.00029169,30]
[424116564,1780601451000,-987.62,0.00029299,7]
[424116563,1780601451000,-912.16,0.00029299,7]
[424116554,1780601451000,-208.47,0.00029201,2]
[424116553,1780601451000,-634.12,0.000292,7]
[424116545,1780601451000,-985.57,0.00029132,30]
[424116555,1780601451000,-211.71,0.00029201,2]
[424116556,1780601451000,-7697.50273474,0.00029226,2]
[424116577,1780601451000,-500.0,0.00029519,11]
[424116572,1780601451000,-150.0,0.00029452,30]
[424116571,1780601451000,-308293.138655,0.00029375,2]
[424116566,1780601451000,-892.68,0.00029299,7]
[424116565,1780601451000,-545.66,0.00029299,7]
[424116568,1780601451000,-548.76,0.00029299,7]
[424116557,1780601451000,-208.54,0.00029232,7]
[424116558,1780601451000,-211.82,0.00029232,7]
[424116561,1780601451000,-500.0,0.00029252,4]
[424116560,1780601451000,-2000.0,0.00029251,4]
[424116562,1780601451000,-150.0,0.00029294,30]
[424116559,1780601451000,-186.04151345,0.0002925,2]
[424116637,1780601452000,-1000.0,0.00029865,7]
[424116626,1780601452000,-333.33333,0.0002983,2]
[424116639,1780601452000,-2000.0,0.00029899,10]
[424116628,1780601452000,-333.33333,0.0002983,2]
[424116638,1780601452000,-747.31,0.00029877,7]
[424116633,1780601452000,-150.0,0.00029862,2]
[424116630,1780601452000,-525.0,0.00029848,2]
[424116636,1780601452000,-154.08950807,0.00029863,20]
[424116631,1780601452000,-1273.0,0.00029848,2]
[424116642,1780601452000,-2000.0,0.00029938,2]
[424116632,1780601452000,-1226.0,0.00029848,2]
[424116634,1780601452000,-150.0,0.00029862,2]
[424116635,1780601452000,-182.86696655,0.00029862,2]
[424116640,1780601452000,-80371.19771535,0.000299,2]
[424116627,1780601452000,-333.33334,0.0002983,2]
[424116643,1780601452000,-2000.0,0.00029938,2]
[424116644,1780601452000,-2000.0,0.00029938,2]
[424116648,1780601452000,-2000.0,0.00029938,2]
[424116641,1780601452000,-2000.0,0.00029938,2]
[424116647,1780601452000,-2000.0,0.00029938,2]
[424116629,1780601452000,-1000.0,0.00029838,7]
[424116624,1780601452000,-31334.90608262,0.0002983,2]
[424116622,1780601452000,-821.05,0.000298,7]
[424116619,1780601452000,-588.0,0.00029699,2]
[424116646,1780601452000,-2000.0,0.00029938,2]
[424116602,1780601452000,-500.0,0.00029673,2]
[424116614,1780601452000,-450.0,0.00029699,2]
[424116604,1780601452000,-500.0,0.00029673,2]
[424116603,1780601452000,-500.0,0.00029673,2]
[424116606,1780601452000,-500.0,0.00029673,2]
[424116609,1780601452000,-700.0,0.00029681,2]
[424116607,1780601452000,-500.0,0.00029673,2]
[424116613,1780601452000,-450.0,0.00029699,2]
[424116623,1780601452000,-151.0,0.00029827,7]
[424116605,1780601452000,-500.0,0.00029673,2]
[424116612,1780601452000,-450.0,0.00029699,2]
[424116610,1780601452000,-350.0,0.00029699,14]
[424116616,1780601452000,-450.0,0.00029699,2]
[424116615,1780601452000,-450.0,0.00029699,2]
[424116618,1780601452000,-450.0,0.00029699,2]
[424116621,1780601452000,-150.0,0.00029797,2]
[424116625,1780601452000,-202018.73379497,0.0002983,2]
[424116617,1780601452000,-450.0,0.00029699,2]
[424116620,1780601452000,-1000.0,0.00029745,7]
[424116611,1780601452000,-450.0,0.00029699,2]
[424116608,1780601452000,-409.0,0.00029673,2]
[424116649,1780601452000,-2000.0,0.00029938,2]
[424116650,1780601452000,-2000.0,0.00029938,2]
[424116674,1780601452000,-212.80808437,0.00029974,2]
[424116669,1780601452000,-203.59110324,0.00029974,2]
[424116677,1780601452000,-348.62553297,0.00029974,2]
[424116683,1780601452000,-411.51907595,0.00029974,2]
[424116685,1780601452000,-456.20718397,0.00029974,2]
[424116679,1780601452000,-275.19833817,0.00029974,2]
[424116682,1780601452000,-557.6469068,0.00029974,2]
[424116681,1780601452000,-244.7367933,0.00029974,2]
[424116678,1780601452000,-523.92,0.00029974,2]
[424116673,1780601452000,-200.74373317,0.00029974,2]
[424116680,1780601452000,-198.17391839,0.00029974,2]
[424116686,1780601452000,-234.61886786,0.00029974,2]
[424116688,1780601452000,-237.06897241,0.00029974,2]
[424116693,1780601452000,-253.0165642,0.00029978,2]
[424116691,1780601452000,-271.99298022,0.00029974,2]
[424116694,1780601452000,-1000.0,0.00029983,7]
[424116689,1780601452000,-191.54786584,0.00029974,2]
[424116690,1780601452000,-471.12538936,0.00029974,2]
[424116692,1780601452000,-486.96111113,0.00029974,2]
[424116645,1780601452000,-2000.0,0.00029938,2]
[424116684,1780601452000,-558.43347819,0.00029974,2]
[424116670,1780601452000,-183.69354974,0.00029974,2]
[424116687,1780601452000,-229.19348474,0.00029974,2]
[424116672,1780601452000,-462.55772298,0.00029974,2]
[424116651,1780601452000,-1000.0,0.00029951,7]
[424116675,1780601452000,-168.21826248,0.00029974,2]
[424116653,1780601452000,-472.68921298,0.00029974,2]
[424116663,1780601452000,-216.37853026,0.00029974,2]
[424116652,1780601452000,-500.0,0.00029956,5]
[424116658,1780601452000,-257.64181589,0.00029974,2]
[424116655,1780601452000,-480.20299947,0.00029974,2]
[424116654,1780601452000,-196.16671752,0.00029974,2]
[424116659,1780601452000,-218.15101478,0.00029974,2]
[424116660,1780601452000,-213.88594878,0.00029974,2]
[424116656,1780601452000,-488.0530364,0.00029974,2]
[424116657,1780601452000,-158.59563751,0.00029974,2]
[424116661,1780601452000,-197.42994637,0.00029974,2]
[424116664,1780601452000,-208.39110537,0.00029974,2]
[424116667,1780601452000,-463.32406174,0.00029974,2]
[424116666,1780601452000,-199.98862997,0.00029974,2]
[424116668,1780601452000,-342.07590446,0.00029974,2]
[424116665,1780601452000,-257.46780031,0.00029974,2]
[424116662,1780601452000,-226.1410293,0.00029974,2]
[424116671,1780601452000,-370.22902302,0.00029974,2]
[424116676,1780601452000,-509.58139861,0.00029974,2]
[424116729,1780601453000,-959.27,0.000301,14]
[424116739,1780601453000,-178.94,0.00030103,30]
[424116738,1780601453000,-178.94,0.00030103,30]
[424116737,1780601453000,-178.94,0.00030103,30]
[424116732,1780601453000,-178.94,0.00030103,30]
[424116728,1780601453000,-2000.0,0.00030099,30]
[424116727,1780601453000,-447.35,0.00030094,7]
[424116726,1780601453000,-447.35,0.00030094,7]
[424116721,1780601453000,-800.60606509,0.0003007,2]
[424116733,1780601453000,-178.94,0.00030103,30]
[424116724,1780601453000,-447.35,0.00030094,7]
[424116734,1780601453000,-178.94,0.00030103,30]
[424116751,1780601453000,-447.35,0.00030112,7]
[424116740,1780601453000,-178.94,0.00030103,30]
[424116736,1780601453000,-178.94,0.00030103,30]
[424116741,1780601453000,-152.0,0.00030112,7]
[424116742,1780601453000,-152.0,0.00030112,7]
[424116743,1780601453000,-447.35,0.00030112,7]
[424116745,1780601453000,-447.35,0.00030112,7]
[424116756,1780601453000,-765.01,0.00030129,11]
[424116753,1780601453000,-151.0,0.00030127,7]
[424116754,1780601453000,-151.0,0.00030127,7]
[424116750,1780601453000,-447.35,0.00030112,7]
[424116748,1780601453000,-447.35,0.00030112,7]
[424116730,1780601453000,-734.0,0.000301,7]
[424116735,1780601453000,-178.94,0.00030103,30]
[424116731,1780601453000,-200.0,0.000301,10]
[424116700,1780601453000,-2000.0,0.00029999,28]
[424116722,1780601453000,-1801.58672356,0.0003007,2]
[424116695,1780601453000,-241.52866936,0.0002999,2]
[424116696,1780601453000,-2000.0,0.00029999,3]
[424116698,1780601453000,-2000.0,0.00029999,14]
[424116708,1780601453000,-1124.73179695,0.0003,2]
[424116697,1780601453000,-2000.0,0.00029999,5]
[424116701,1780601453000,-2000.0,0.00029999,6]
[424116746,1780601453000,-447.35,0.00030112,7]
[424116703,1780601453000,-634.12,0.0003,7]
[424116702,1780601453000,-99912.57149913,0.0003,5]
[424116699,1780601453000,-2000.0,0.00029999,24]
[424116704,1780601453000,-1941.91000824,0.0003,3]
[424116707,1780601453000,-11180.83894307,0.0003,2]
[424116705,1780601453000,-20835.0233457,0.0003,2]
[424116706,1780601453000,-2000.0,0.0003,3]
[424116710,1780601453000,-897.93931998,0.0003,10]
[424116713,1780601453000,-200.0,0.0003,2]
[424116711,1780601453000,-4661.38053202,0.0003,24]
[424116714,1780601453000,-186.04151345,0.0003,2]
[424116712,1780601453000,-9725.71753075,0.0003,14]
[424116709,1780601453000,-1851.88994905,0.0003,2]
[424116716,1780601453000,-10000.0,0.0003003,2]
[424116715,1780601453000,-584.0972482,0.0003,2]
[424116717,1780601453000,-1000.0,0.00030032,7]
[424116718,1780601453000,-2000.0,0.00030034,15]
[424116719,1780601453000,-279.57099454,0.00030066,2]
[424116720,1780601453000,-209.01102078,0.00030066,2]
[424116723,1780601453000,-447.35,0.00030094,7]
[424116725,1780601453000,-447.35,0.00030094,7]
[424116744,1780601453000,-447.35,0.00030112,7]
[424116755,1780601453000,-151.0,0.00030127,7]
[424116747,1780601453000,-447.35,0.00030112,7]
[424116785,1780601453000,-1547.0,0.0003013,7]
[424116787,1780601453000,-1500.0,0.0003013,7]
[424116792,1780601453000,-151.0,0.0003013,7]
[424116786,1780601453000,-1547.0,0.0003013,7]
[424116791,1780601453000,-151.0,0.0003013,2]
[424116790,1780601453000,-153.0,0.0003013,7]
[424116789,1780601453000,-302.89798873,0.0003013,7]
[424116795,1780601453000,-1547.0,0.0003013,7]
[424116805,1780601453000,-447.35,0.0003013,7]
[424116797,1780601453000,-152.0,0.0003013,7]
[424116798,1780601453000,-14120.52543672,0.0003013,2]
[424116794,1780601453000,-200.0,0.0003013,2]
[424116796,1780601453000,-1547.0,0.0003013,7]
[424116800,1780601453000,-205.52823685,0.0003013,2]
[424116799,1780601453000,-646.06446933,0.0003013,2]
[424116801,1780601453000,-302.47256394,0.0003013,2]
[424116802,1780601453000,-2002899.25489718,0.0003013,7]
[424116803,1780601453000,-200.0,0.0003013,2]
[424116806,1780601453000,-447.35,0.0003013,7]
[424116807,1780601453000,-447.35,0.0003013,7]
[424116809,1780601453000,-447.35,0.0003013,7]
[424116808,1780601453000,-447.35,0.0003013,7]
[424116811,1780601453000,-333.33334,0.0003013,4]
[424116810,1780601453000,-333.33333,0.0003013,4]
[424116812,1780601453000,-333.33333,0.0003013,4]